bitfinex/quotes_BTCUSD_20260311
["timestamp","ask_amount","ask_price","bid_price","bid_amount"]
[1773237702539,0.00156,70465.0,70440.0,0.07098038]
[1773237702772,0.00156,70465.0,70439.0,0.07185699]
[1773237702979,0.00156,70465.0,70407.0,0.17028]
[1773237702980,0.12708402,70460.0,70432.0,0.0002]
[1773237703193,0.00156,70465.0,70416.0,0.00156]
[1773237703194,0.12708402,70450.0,70416.0,0.00156]
[1773237703391,0.0384,70461.0,70415.0,0.01124]
[1773237703392,0.14102776,70441.0,70415.0,0.01124]
[1773237703550,0.55349218,70439.0,70415.0,0.01124]
[1773237703750,0.55349218,70439.0,70415.0,0.08224717]
[1773237703981,0.55349218,70439.0,70415.0,0.01124]
[1773237704180,0.07098441,70438.0,70415.0,0.01124]
[1773237704382,0.12708402,70430.0,70400.0,0.00156]
[1773237704583,0.00156,70429.0,70400.0,0.07258231]
[1773237705228,0.00156,70429.0,70399.0,0.07102373]
[1773237705428,0.00156,70429.0,70394.0,0.07102777]
[1773237705429,0.12708402,70420.0,70394.0,0.07102777]
[1773237705742,0.00156,70419.0,70393.0,0.07102878]
[1773237705941,0.07074816,70437.0,70393.0,0.07102878]
[1773237705942,0.00156,70418.0,70393.0,0.07102878]
[1773237706417,0.07100558,70417.0,70390.0,0.07123212]
[1773237706623,0.07100558,70417.0,70390.0,0.07123239]
[1773237706823,0.07100558,70417.0,70390.0,0.0002]
[1773237706980,0.55349218,70409.0,70385.0,0.07103746]
[1773237707180,0.00152,70408.0,70376.0,0.07104694]
[1773237707776,0.00152,70408.0,70375.0,0.0002]
[1773237707976,0.12708402,70400.0,70375.0,0.0712476]
[1773237708212,0.00152,70399.0,70375.0,0.0002]
[1773237708419,0.00152,70398.0,70375.0,0.07124747]
[1773237708748,0.00152,70398.0,70375.0,0.07124764]
[1773237709037,0.00152,70398.0,70375.0,0.0002]
[1773237709659,0.12708402,70390.0,70369.0,1e-08]
[1773237709902,0.12708402,70390.0,70358.0,0.08230496]
[1773237710021,0.54687684,70379.0,70358.0,1e-08]
[1773237710214,0.07104593,70377.0,70358.0,1e-08]
[1773237710427,0.00152,70376.0,70358.0,1e-08]
[1773237710638,0.0384,70369.0,70337.0,0.00152]
[1773237710840,0.0384,70369.0,70329.0,0.07109367]
[1773237710841,0.12708402,70360.0,70331.0,0.00152]
[1773237711044,0.00152,70359.0,70331.0,0.00152]
[1773237711244,0.00152,70359.0,70329.0,0.07109379]
[1773237711245,0.12708402,70350.0,70324.0,0.0008137]
[1773237711460,0.12708402,70341.0,70304.0,0.0711197]
[1773237711663,0.12708402,70341.0,70307.0,0.00152]
[1773237711858,0.03992,70340.0,70307.0,0.00152]
[1773237712063,0.03992,70340.0,70302.0,0.0711197]
[1773237712064,0.12708402,70330.0,70302.0,0.0711197]
[1773237712313,0.07109442,70329.0,70302.0,0.0711197]
[1773237712489,0.00152,70328.0,70302.0,0.0711197]
[1773237712710,0.12708402,70320.0,70301.0,0.01124]
[1773237712904,0.12708402,70320.0,70279.0,0.18154606]
[1773237712905,0.54687684,70319.0,70279.0,0.18154606]
[1773237713179,0.54687684,70319.0,70276.0,0.00156]
[1773237713180,0.0384,70309.0,70276.0,0.00156]
[1773237713378,0.00152,70308.0,70277.0,0.13291785]
[1773237713579,0.1275929,70300.0,70275.0,0.0009452]
[1773237713779,0.54687684,70319.0,70263.0,0.43001142]
[1773237714243,0.00152,70318.0,70265.0,0.14176907]
[1773237714449,0.00156,70317.0,70267.0,0.14176907]
[1773237714778,0.1275929,70310.0,70267.0,0.14176907]
[1773237714979,0.00119,70309.0,70267.0,0.14176907]
[1773237715180,0.00156,70308.0,70267.0,0.14176907]
[1773237715801,0.00156,70308.0,70266.0,0.07115817]
[1773237715802,0.1275929,70290.0,70255.0,0.07116894]
[1773237715999,0.1829674,70312.0,70251.0,0.21294243]
[1773237716000,0.1275929,70280.0,70251.0,0.14176907]
[1773237716205,0.00148,70279.0,70251.0,0.14176907]
[1773237716422,0.07114703,70277.0,70252.0,0.07117235]
[1773237717067,0.1275929,70270.0,70250.0,0.03412981]
[1773237717259,0.07114703,70277.0,70250.0,0.0711737]
[1773237717474,0.00148,70276.0,70250.0,0.0711737]
[1773237717605,0.07114703,70277.0,70246.0,0.07117749]
[1773237717606,0.1275929,70270.0,70246.0,0.07117749]
[1773237717831,0.1275929,70270.0,70237.0,0.07118735]
[1773237718046,0.00148,70269.0,70243.0,0.07117944]
[1773237718359,0.07115715,70267.0,70244.0,0.08241992]
[1773237718583,0.00148,70266.0,70244.0,0.08241992]
[1773237718791,0.00148,70265.0,70244.0,0.08241992]
[1773237718991,0.071145,70279.0,70244.0,0.08241992]
[1773237718992,0.00148,70264.0,70244.0,0.08241992]
[1773237719388,0.00148,70264.0,70244.0,0.01124]
[1773237719704,0.12794305,70270.0,70230.0,0.00156]
[1773237719705,0.00035015,70270.0,70230.0,0.00156]
[1773237719880,0.00152,70269.0,70233.0,0.14176907]
[1773237720078,0.00152,70268.0,70233.0,0.14176907]
[1773237720406,0.07115715,70267.0,70234.0,0.07119059]
[1773237720567,0.07115715,70267.0,70227.0,0.07119762]
[1773237720903,0.0715073,70270.0,70232.0,0.14176907]
[1773237721052,0.00152,70269.0,70232.0,0.14176907]
[1773237721247,0.0715073,70270.0,70232.0,0.14176907]
[1773237721248,0.00152,70268.0,70232.0,0.14176907]
[1773237721450,0.0715073,70270.0,70232.0,0.14176907]
[1773237721655,0.00035015,70270.0,70241.0,0.14176907]
[1773237721855,0.00035015,70270.0,70243.0,0.14176907]
[1773237722602,0.00035015,70270.0,70245.0,0.14176907]
[1773237722811,0.00152,70291.0,70251.0,0.14176907]
[1773237723023,0.54687684,70289.0,70251.0,0.14176907]
[1773237723225,0.07112476,70299.0,70252.0,0.00152]
[1773237723362,0.00152,70292.0,70253.0,0.14328907]
[1773237723565,0.00152,70292.0,70253.0,0.14176907]
[1773237723809,0.00152,70292.0,70254.0,0.00156]
[1773237724271,0.00152,70292.0,70244.0,0.07118045]
[1773237724272,0.0384,70289.0,70244.0,0.07118045]
[1773237724475,0.07113994,70284.0,70244.0,0.07118045]
[1773237724672,0.00152,70283.0,70246.0,0.14176907]
[1773237724872,0.00152,70282.0,70247.0,0.00074122]
[1773237725082,0.00152,70282.0,70248.0,0.14176907]
[1773237725232,0.0384,70281.0,70242.0,0.00156]
[1773237725433,0.1445674,70280.0,70238.0,0.07118349]
[1773237725636,0.1445674,70280.0,70239.0,0.07118552]
[1773237725832,0.00152,70282.0,70240.0,0.14176907]
[1773237726038,0.07113994,70284.0,70240.0,0.14176907]
[1773237726257,0.00152,70283.0,70240.0,0.14176907]
[1773237726459,0.10954399,70280.0,70241.0,0.00156]
[1773237726677,0.10954399,70280.0,70237.0,0.07118552]
[1773237726678,0.07114399,70280.0,70242.0,0.00230128]
[1773237726892,0.07366399,70280.0,70242.0,0.00156]
[1773237727096,0.0384,70279.0,70243.0,0.00156]
[1773237727377,0.1757702,70280.0,70244.0,0.00156]
[1773237727579,0.1757702,70280.0,70234.0,0.07119059]
[1773237727580,0.03234816,70273.0,70234.0,0.07119059]
[1773237727794,0.1445674,70274.0,70239.0,0.00156]
[1773237727795,0.0384,70270.0,70239.0,0.00156]
[1773237727988,0.0384,70272.0,70239.0,0.00156]
[1773237727989,0.00152,70272.0,70239.0,0.00156]
[1773237728190,0.0384,70270.0,70233.0,0.07139135]
[1773237728382,0.0384,70272.0,70237.0,0.00156]
[1773237728692,0.0384,70266.0,70233.0,0.0002]
[1773237728865,0.0384,70266.0,70217.0,0.14176907]
[1773237728866,0.54687684,70257.0,70226.0,0.00156]
[1773237729078,0.1445674,70255.0,70223.0,0.00156]
[1773237729365,0.1445674,70255.0,70224.0,0.00156]
[1773237729567,0.54687684,70257.0,70224.0,0.00156]
[1773237729746,0.00156,70256.0,70224.0,0.00156]
[1773237729951,1.98512653,70319.0,70242.0,0.14176907]
[1773237729952,0.01086899,70284.0,70242.0,0.14176907]
[1773237730177,0.07111351,70311.0,70262.0,0.43065644]
[1773237730378,0.04272411,70321.0,70275.0,0.166715]
[1773237730583,0.01,70330.0,70275.0,0.166715]
[1773237730584,0.01,70330.0,70290.0,0.10210621]
[1773237730787,0.01,70330.0,70293.0,0.14176907]
[1773237730984,0.01,70330.0,70294.0,0.1566]
[1773237731151,0.07107682,70347.0,70302.0,0.14176907]
[1773237731352,0.07107682,70347.0,70295.0,0.17232]
[1773237731353,0.07107682,70347.0,70304.0,0.14176907]
[1773237731551,0.07107682,70347.0,70306.0,0.14176907]
[1773237731747,0.07107682,70347.0,70307.0,0.00156]
[1773237732003,0.07107682,70347.0,70307.0,0.14176907]
[1773237732202,0.07107682,70347.0,70309.0,0.14176907]
[1773237732439,0.07107421,70349.0,70311.0,0.14176907]
[1773237732713,0.07106244,70361.0,70313.0,0.14176907]
[1773237732942,0.01,70370.0,70349.0,0.14176907]
[1773237732943,1e-08,70370.0,70349.0,0.14176907]
[1773237733145,0.04268029,70390.0,70352.0,0.14176907]
[1773237733276,0.04268029,70390.0,70332.0,0.15664]
[1773237733277,0.11085557,70388.0,70332.0,0.15664]
[1773237733496,0.11085557,70381.0,70334.0,0.14176907]
[1773237733694,0.07259382,70389.0,70334.0,0.14176907]
[1773237734118,0.07259382,70389.0,70336.0,0.14176907]
[1773237734530,0.34096236,70394.0,70336.0,0.14176907]
[1773237734531,0.34075826,70432.0,70337.0,0.07108634]
[1773237734724,0.07098743,70437.0,70380.0,0.14176907]
[1773237734977,0.54687684,70436.0,70382.0,0.14176907]
[1773237735106,0.54843684,70436.0,70382.0,0.14176907]
[1773237735307,0.54687684,70436.0,70384.0,0.14176907]
[1773237735539,0.106867,70435.0,70384.0,0.14176907]
[1773237735729,0.00156,70435.0,70385.0,0.00156]
[1773237735932,0.00156,70435.0,70386.0,0.00156]
[1773237736212,0.525771,70429.0,70361.0,0.12677092]
[1773237736415,0.525771,70429.0,70365.0,0.14176907]
[1773237736635,0.0384,70426.0,70368.0,0.14176907]
[1773237736842,0.07099449,70428.0,70369.0,0.03234816]
[1773237737053,0.07099449,70428.0,70381.0,0.14176907]
[1773237737386,0.07099449,70428.0,70369.0,0.07498835]
[1773237737684,0.07099449,70428.0,70382.0,0.14176907]
[1773237737885,0.07099449,70428.0,70384.0,0.14176907]
[1773237738008,0.07099449,70428.0,70385.0,0.00156]
[1773237738208,0.07099449,70428.0,70370.0,0.32648]
[1773237738209,0.07099449,70428.0,70387.0,0.14176907]
[1773237738459,0.07099449,70429.0,70389.0,0.14176907]
[1773237738617,0.10210621,70440.0,70392.0,0.14176907]
[1773237738821,0.07097925,70444.0,70400.0,1.0]
[1773237738822,0.54843684,70439.0,70400.0,1.0]
[1773237739201,0.00156,70438.0,70400.0,1.0]
[1773237739376,0.00156,70438.0,70401.0,0.00156]
[1773237739678,0.07097925,70444.0,70401.0,0.13286183]
[1773237740027,0.07097925,70444.0,70401.0,0.13130183]
[1773237740241,0.88751131,70457.0,70401.0,0.13130183]
[1773237740242,0.17064,70484.0,70421.0,0.394568]
[1773237740444,0.00012,70495.0,70432.0,0.911359]
[1773237740445,0.07092807,70494.0,70432.0,0.911359]
[1773237740660,0.07092807,70494.0,70430.0,0.15]
[1773237740661,0.07092807,70494.0,70443.0,0.13130183]
[1773237740862,0.07092807,70494.0,70442.0,0.07098038]
[1773237740863,0.07092807,70494.0,70445.0,0.13130183]
[1773237741071,0.07092807,70494.0,70447.0,0.13130183]
[1773237741912,0.07092807,70494.0,70448.0,0.17216]
[1773237742242,0.07092807,70494.0,70448.0,0.15596]
[1773237742435,0.07092807,70494.0,70450.0,0.13130183]
[1773237742718,0.07104807,70495.0,70452.0,0.13130183]
[1773237742942,0.07104807,70495.0,70453.0,0.13130183]
[1773237743423,0.11111272,70539.0,70471.0,0.13130183]
[1773237743626,0.54942035,70560.0,70454.0,0.17208]
[1773237743627,0.01069283,70599.0,70587.0,0.138354]
[1773237743823,0.33986129,70618.0,70495.0,0.0148]
[1773237743824,0.55839419,70642.0,70552.0,0.13130183]
[1773237743983,0.55839419,70642.0,70589.0,0.13130183]
[1773237743984,0.07079523,70627.0,70589.0,0.13130183]
[1773237744178,0.04257003,70598.0,70558.0,0.03234816]
[1773237744385,0.04257003,70598.0,70548.0,0.0384]
[1773237744386,0.04257003,70598.0,70567.0,0.13130183]
[1773237744605,0.55839419,70614.0,70567.0,0.13130183]
[1773237744606,0.0708125,70609.0,70567.0,0.13130183]
[1773237744805,0.03234816,70607.0,70553.0,0.04251519]
[1773237744947,0.00156,70606.0,70554.0,0.00156]
[1773237745298,0.0708125,70609.0,70554.0,0.13286183]
[1773237745448,0.00156,70608.0,70554.0,0.13286183]
[1773237745653,0.0708125,70609.0,70554.0,0.13286183]
[1773237745654,0.0708125,70609.0,70554.0,0.13130183]
[1773237745852,0.0708125,70609.0,70556.0,0.13130183]
[1773237746074,0.0708125,70609.0,70558.0,0.13130183]
[1773237746253,0.0708125,70612.0,70555.0,0.172]
[1773237746254,0.17044,70638.0,70556.0,0.16364999]
[1773237746453,0.007,70640.0,70551.0,0.22258988]
[1773237746454,0.07079746,70625.0,70575.0,0.13130183]
[1773237746639,0.07091445,70628.0,70577.0,0.13130183]
[1773237746640,0.00012,70628.0,70577.0,0.13130183]
[1773237746850,0.00012,70628.0,70589.0,0.000348]
[1773237747095,0.00012,70628.0,70591.0,0.13130183]
[1773237747295,0.00012,70628.0,70592.0,0.00156]
[1773237747471,0.00012,70628.0,70589.0,0.000348]
[1773237747654,0.0384,70625.0,70590.0,0.00156]
[1773237747861,0.00156,70624.0,70591.0,0.00156]
[1773237748090,0.00156,70623.0,70592.0,0.00156]
[1773237748304,0.00156,70623.0,70593.0,0.00156]
[1773237748504,0.00156,70623.0,70573.0,0.13130183]
[1773237748715,0.07079946,70622.0,70575.0,0.07084661]
[1773237748887,0.07079946,70622.0,70576.0,0.13130183]
[1773237749284,0.07079946,70622.0,70577.0,0.00156]
[1773237749646,0.07079946,70622.0,70578.0,0.00156]
[1773237749795,0.10210621,70610.0,70567.0,0.00156]
[1773237749996,0.00156,70609.0,70568.0,0.00156]
[1773237750333,0.00156,70609.0,70559.0,0.13130183]
[1773237750334,0.0384,70608.0,70559.0,0.13130183]
[1773237750635,0.0384,70619.0,70538.0,0.14964]
[1773237750636,0.03234816,70619.0,70561.0,0.2021625]
[1773237750832,0.0384,70616.0,70561.0,0.2021625]
[1773237751142,0.03234816,70604.0,70544.0,0.07087775]
[1773237751312,0.0384,70597.0,70545.0,0.00156]
[1773237751527,0.0384,70597.0,70544.0,0.07087775]
[1773237751714,0.14814,70588.0,70545.0,0.00156]
[1773237751916,0.07074816,70580.0,70534.0,0.00156]
[1773237752511,0.00012,70628.0,70560.0,0.10210621]
[1773237752695,0.00012,70628.0,70581.0,0.13130183]
[1773237752894,0.07079445,70627.0,70581.0,0.13130183]
[1773237753099,0.07079445,70627.0,70574.0,0.13130183]
[1773237753301,0.00012,70628.0,70584.0,0.141893]
[1773237753500,0.07079445,70627.0,70586.0,0.13130183]
[1773237753984,0.007,70640.0,70585.0,0.00156]
[1773237753985,7.5e-05,70693.0,70587.0,0.03234816]
[1773237754129,0.07075482,70667.0,70613.0,0.03234816]
[1773237754341,0.07075947,70662.0,70615.0,0.13130183]
[1773237754497,0.07075947,70662.0,70610.0,0.13130183]
[1773237754718,0.07075947,70662.0,70617.0,0.07080448]
[1773237754922,0.07075947,70662.0,70618.0,0.13130183]
[1773237755148,0.07075947,70662.0,70619.0,0.00103835]
[1773237755297,0.07075947,70662.0,70619.0,0.00073835]
[1773237755910,0.07075947,70662.0,70620.0,0.13130183]
[1773237756357,0.03705676,70665.0,70620.0,0.13130183]
[1773237756558,0.00156,70698.0,70631.0,0.13130183]
[1773237756839,0.07075137,70670.0,70634.0,0.13130183]
[1773237757432,0.00022001,70662.0,70636.0,0.13130183]
[1773237757683,0.00022001,70662.0,70637.0,0.00156]
[1773237757984,0.00022001,70662.0,70638.0,0.00156]
[1773237758195,0.00022001,70662.0,70608.0,0.14796]
[1773237758196,0.00022001,70662.0,70610.0,0.20211232]
[1773237758391,0.00022001,70662.0,70612.0,0.13130183]
[1773237758757,0.07098016,70662.0,70615.0,0.13130183]
[1773237759181,0.07098016,70662.0,70616.0,0.17164]
[1773237759403,0.33924223,70746.0,70651.0,0.13130183]
[1773237759609,0.57649385,70754.0,70690.0,0.10210621]
[1773237759811,0.07069253,70729.0,70689.0,0.00709202]
[1773237760007,0.00152,70728.0,70689.0,0.00709202]
[1773237760244,0.00152,70728.0,70653.0,0.14844]
[1773237760400,0.213018,70727.0,70659.0,0.1476966]
[1773237760571,0.213018,70727.0,70660.0,0.00156]
[1773237760776,0.0384,70725.0,70660.0,0.07076139]
[1773237761022,0.0384,70723.0,70661.0,0.00156]
[1773237761171,0.07069535,70726.0,70661.0,0.03390816]
[1773237761376,0.07069535,70726.0,70665.0,0.1476966]
[1773237761574,0.07069535,70726.0,70661.0,0.1476966]
[1773237761876,0.07069535,70726.0,70663.0,0.1476966]
[1773237762072,0.07069535,70726.0,70671.0,0.1476966]
[1773237762271,0.07069535,70726.0,70673.0,0.1476966]
[1773237762566,0.07069535,70726.0,70675.0,0.1476966]
[1773237762769,0.07069535,70726.0,70677.0,0.1476966]
[1773237762928,0.07069535,70730.0,70679.0,0.1476966]
[1773237763138,0.00156,70732.0,70680.0,0.1476966]
[1773237763359,0.00156,70732.0,70678.0,0.07074337]
[1773237763360,0.00156,70732.0,70681.0,0.17156]
[1773237763546,0.00156,70732.0,70682.0,0.1476966]
[1773237763950,0.291053,70731.0,70683.0,0.00156]
[1773237764192,0.00156,70732.0,70678.0,0.07074337]
[1773237764412,0.10210621,70720.0,70679.0,0.00156]
[1773237764619,0.10210621,70720.0,70680.0,0.00156]
[1773237764620,0.00156,70719.0,70680.0,0.00156]
[1773237764939,0.00156,70719.0,70682.0,0.07073936]
[1773237764940,0.07070335,70718.0,70682.0,0.07073936]
[1773237765152,0.07070335,70718.0,70683.0,0.00148]
[1773237765332,0.479455,70717.0,70645.0,0.1476966]
[1773237765537,0.10210621,70700.0,70646.0,0.00148]
[1773237765751,0.10210621,70700.0,70643.0,0.08201775]
[1773237765752,0.03234816,70696.0,70643.0,0.08201775]
[1773237765963,0.03234816,70696.0,70644.0,0.07225741]
[1773237765964,0.16344,70695.0,70644.0,0.07225741]
[1773237766147,0.00156,70694.0,70644.0,0.07225741]
[1773237766352,0.825831,70713.0,70645.0,0.00148]
[1773237766598,0.03234816,70706.0,70646.0,0.00148]
[1773237766769,0.03234816,70706.0,70616.0,0.04247486]
[1773237766770,0.10210621,70690.0,70616.0,0.04247486]
[1773237766945,0.77293873,70669.0,70617.0,0.07080349]
[1773237767205,0.1121,70667.0,70618.0,0.00148]
[1773237767332,0.65013873,70669.0,70618.0,0.00148]
[1773237767535,0.00156,70668.0,70619.0,0.1476966]
[1773237768169,0.00156,70668.0,70620.0,0.00152]
[1773237768403,0.00156,70668.0,70617.0,0.07080349]
[1773237768404,0.00156,70668.0,70621.0,0.00152]
[1773237768579,0.00156,70668.0,70622.0,0.00152]
[1773237769156,0.00156,70668.0,70623.0,0.07079846]
[1773237769157,0.07075438,70667.0,70623.0,0.07079846]
[1773237769564,0.07075438,70667.0,70624.0,0.1476966]
[1773237769743,0.07072235,70699.0,70625.0,0.14915384]
[1773237769896,0.10210621,70690.0,70631.0,0.14915384]
[1773237770099,0.00156,70689.0,70630.0,0.15]
[1773237770297,0.57938635,70698.0,70641.0,0.14915384]
[1773237770536,0.57938635,70698.0,70635.0,0.14915384]
[1773237770748,0.00156,70697.0,70642.0,0.16992]
[1773237770946,0.00156,70697.0,70643.0,0.00152]
[1773237771099,0.00156,70697.0,70637.0,0.07078443]
[1773237771100,0.805637,70694.0,70637.0,0.07078443]
[1773237771301,0.10210621,70680.0,70638.0,0.00152]
[1773237771503,0.00156,70679.0,70637.0,0.07078443]
[1773237771720,0.00156,70679.0,70639.0,0.00152]
[1773237771967,0.00764,70735.0,70661.0,0.14915384]
[1773237772166,1e-08,70734.0,70692.0,2.653436]
[1773237772316,1e-08,70734.0,70698.0,0.14915384]
[1773237772512,0.07068778,70734.0,70700.0,0.14915384]
[1773237772698,0.07068778,70734.0,70701.0,0.00152]
[1773237772899,1e-08,70734.0,70702.0,0.925223]
[1773237773230,1e-08,70734.0,70705.0,0.14915384]
[1773237773432,1e-08,70734.0,70707.0,0.14915384]
[1773237773635,1e-08,70734.0,70710.0,0.14915384]
[1773237773833,1e-08,70734.0,70715.0,0.10804647]
[1773237774041,1e-08,70734.0,70716.0,0.10956647]
[1773237774357,1e-08,70734.0,70717.0,0.00152]
[1773237774609,0.07066538,70759.0,70707.0,0.15758066]
[1773237774610,0.16988,70788.0,70721.0,0.14915384]
[1773237774800,0.16988,70788.0,70720.0,0.10075437]
[1773237774801,0.07062305,70799.0,70741.0,0.15758066]
[1773237775011,0.07062305,70799.0,70742.0,0.00152]
[1773237775139,0.07062305,70799.0,70744.0,0.07067737]
[1773237775340,0.07062305,70799.0,70745.0,0.129417]
[1773237775559,0.07062305,70799.0,70748.0,0.15758066]
[1773237775736,0.07062305,70799.0,70749.0,0.14915384]
[1773237775942,0.07062305,70799.0,70751.0,0.14915384]
[1773237776136,0.07062305,70799.0,70753.0,0.14915384]
[1773237776387,0.07062305,70799.0,70754.0,0.14915384]
[1773237776619,0.07058419,70838.0,70781.0,0.14915384]
[1773237776790,0.00156,70837.0,70781.0,0.14899599]
[1773237776963,0.00156,70837.0,70799.0,0.00060037]
[1773237777178,0.42585451,70818.0,70778.0,0.00152]
[1773237777380,0.00156,70817.0,70757.0,0.01124]
[1773237777563,0.10075437,70800.0,70757.0,0.08190357]
[1773237777759,0.00156,70799.0,70757.0,0.01124]
[1773237778083,0.145686,70798.0,70758.0,0.00152]
[1773237778283,0.00156,70799.0,70758.0,0.00152]
[1773237778499,0.10075437,70840.0,70759.0,0.17128]
[1773237778673,0.17135788,70820.0,70757.0,0.23105797]
[1773237778878,0.255391,70817.0,70758.0,0.00152]
[1773237779098,0.17135788,70820.0,70757.0,0.23105797]
[1773237779099,0.255391,70815.0,70757.0,0.23105797]
[1773237779416,0.16154,70813.0,70758.0,0.00156]
[1773237779619,0.16154,70813.0,70757.0,0.23105797]
[1773237779823,0.0706075,70814.0,70757.0,0.01124]
[1773237779824,0.24257,70799.0,70757.0,0.01124]
[1773237780029,0.0706075,70814.0,70758.0,0.00156]
[1773237780188,0.10075437,70810.0,70757.0,0.08190419]
[1773237780389,0.0706075,70814.0,70757.0,0.08190419]
[1773237780390,0.0706075,70814.0,70758.0,0.00156]
[1773237780598,0.00156,70813.0,70759.0,0.00156]
[1773237780809,0.00156,70813.0,70757.0,0.01124]
[1773237780810,0.03234816,70809.0,70757.0,0.01124]
[1773237781026,0.254139,70788.0,70737.0,0.00156]
[1773237781220,0.10075437,70770.0,70719.0,0.07070145]
[1773237781445,0.03234816,70767.0,70704.0,0.07071735]
[1773237781640,0.20362816,70769.0,70708.0,0.00156]
[1773237781641,0.58470023,70749.0,70708.0,0.00156]
[1773237781857,0.00156,70748.0,70708.0,0.00156]
[1773237782215,0.58470023,70749.0,70708.0,0.00156]
[1773237782426,0.00156,70750.0,70709.0,0.14870706]
[1773237782668,0.10075437,70760.0,70709.0,0.14870706]
[1773237782810,0.329303,70758.0,70709.0,0.00156]
[1773237783160,0.07066438,70757.0,70709.0,0.00156]
[1773237783372,0.07066438,70757.0,70701.0,0.07227935]
[1773237783373,0.10075437,70750.0,70701.0,0.07227935]
[1773237783525,0.10075437,70750.0,70717.0,0.264907]
[1773237783727,0.10075437,70750.0,70701.0,0.07071935]
[1773237783929,0.10075437,70750.0,70683.0,0.15758066]
[1773237783930,0.10075437,70730.0,70680.0,0.07074036]
[1773237784189,0.00156,70729.0,70681.0,0.07073944]
[1773237784315,0.17128,70728.0,70681.0,0.07073944]
[1773237784553,0.00156,70727.0,70682.0,0.13562635]
[1773237784757,0.10075437,70720.0,70662.0,0.07075936]
[1773237785028,0.10075437,70720.0,70661.0,0.07075936]
[1773237785306,0.07226235,70719.0,70662.0,0.14915384]
[1773237785468,0.00156,70718.0,70663.0,0.14915384]
[1773237786101,0.00156,70718.0,70664.0,0.00156]
[1773237786603,0.00156,70718.0,70663.0,0.14915384]
[1773237786604,0.00156,70718.0,70663.0,0.00156]
[1773237786752,0.05,70711.0,70663.0,0.00156]
[1773237786951,0.00156,70710.0,70663.0,0.00156]
[1773237787151,0.00156,70710.0,70662.0,0.00156]
[1773237787360,0.10075437,70700.0,70644.0,0.31197713]
[1773237787564,0.10075437,70680.0,70634.0,0.16282329]
[1773237787769,0.15152722,70697.0,70645.0,0.07077641]
[1773237788015,0.15152722,70697.0,70643.0,0.08201741]
[1773237788016,0.25438722,70693.0,70643.0,0.08201741]
[1773237788204,0.20283,70692.0,70643.0,0.08201741]
[1773237788417,0.15152722,70693.0,70643.0,0.01124]
[1773237788647,0.58470023,70699.0,70644.0,0.07077741]
[1773237788648,0.15152722,70684.0,70644.0,0.07077741]
[1773237788852,0.18387538,70679.0,70628.0,0.00012]
[1773237789144,0.15152722,70671.0,70628.0,0.07091279]
[1773237789331,0.07075238,70669.0,70628.0,0.00012]
[1773237789510,0.58467023,70658.0,70623.0,0.0002]
[1773237789721,0.58467023,70658.0,70610.0,0.07081142]
[1773237789722,0.376655,70655.0,70611.0,0.07080974]
[1773237789882,0.23027,70655.0,70615.0,0.07100553]
[1773237790087,0.15152722,70655.0,70615.0,0.07100647]
[1773237790325,0.10075437,70640.0,70607.0,0.0002]
[1773237790546,0.00156,70639.0,70607.0,0.0002]
[1773237790751,0.00156,70639.0,70600.0,0.0002]
[1773237790752,0.627664,70638.0,70600.0,0.0002]
[1773237790944,0.15152722,70637.0,70600.0,0.0002]
[1773237791155,0.15152722,70637.0,70587.0,0.07083457]
[1773237791363,0.07080347,70618.0,70587.0,0.07083457]
[1773237791565,0.07080347,70618.0,70575.0,0.07084632]
[1773237791566,0.3093,70617.0,70575.0,0.07084632]
[1773237791780,0.22233069,70618.0,70580.0,0.07243599]
[1773237791781,0.23394,70616.0,70580.0,0.07243599]
[1773237791982,0.00156,70616.0,70580.0,0.0015953]
[1773237792337,0.503228,70613.0,70569.0,0.00156]
[1773237792536,0.15152722,70608.0,70553.0,0.00156]
[1773237792865,0.10075437,70590.0,70541.0,0.07088076]
[1773237793096,0.15152722,70594.0,70541.0,0.07088076]
[1773237793328,0.10075437,70610.0,70541.0,0.07088076]
[1773237793329,0.00156,70593.0,70541.0,0.07088076]
[1773237793564,0.03234816,70609.0,70543.0,0.14915384]
[1773237793565,0.00156,70592.0,70543.0,0.14915384]
[1773237794212,0.00156,70591.0,70551.0,0.14915384]
[1773237794425,0.58447023,70619.0,70552.0,0.00156]
[1773237794638,0.07236381,70618.0,70561.0,0.18244]
[1773237794845,0.07236381,70618.0,70563.0,0.14915384]
[1773237795053,0.07236381,70618.0,70564.0,0.00156]
[1773237795257,0.07236381,70618.0,70563.0,0.14915384]
[1773237795462,0.07236381,70618.0,70545.0,0.03234816]
[1773237795463,0.10075437,70610.0,70564.0,0.00156]
[1773237795685,0.10075437,70590.0,70546.0,0.07087574]
[1773237795897,0.00156,70589.0,70547.0,0.00156]
[1773237796329,0.00156,70589.0,70546.0,0.07087574]
[1773237796330,0.10075437,70570.0,70531.0,0.0708898]
[1773237796540,0.10075437,70570.0,70530.0,0.0708898]
[1773237796541,0.00156,70569.0,70530.0,0.0708898]
[1773237796747,0.00156,70569.0,70529.0,0.01124]
[1773237797182,0.00156,70569.0,70519.0,0.001085]
[1773237797183,0.52749534,70549.0,70519.0,0.001085]
[1773237797409,0.07087473,70547.0,70520.0,0.07097614]
[1773237797622,0.07085464,70567.0,70523.0,0.07089885]
[1773237797832,0.00156,70566.0,70523.0,0.07089885]
[1773237798254,0.07085464,70569.0,70523.0,0.07089885]
[1773237798255,0.00156,70565.0,70523.0,0.07089885]
[1773237798458,0.07085464,70569.0,70523.0,0.07089885]
[1773237798689,0.0024,70706.0,70523.0,0.07089885]
[1773237798690,0.59834179,70576.0,70524.0,0.206944]
[1773237798898,0.00156,70568.0,70524.0,0.43510684]
[1773237799103,0.00156,70577.0,70526.0,0.14915384]
[1773237799311,0.07083959,70583.0,70524.0,0.350321]
[1773237799521,0.07240632,70576.0,70528.0,0.311117]
[1773237799777,0.00156,70575.0,70529.0,0.126917]
[1773237800126,0.00156,70575.0,70529.0,0.112159]
[1773237800482,0.07083471,70587.0,70526.0,0.07089583]
[1773237800483,0.00156,70587.0,70540.0,0.39313913]
[1773237800709,0.00156,70605.0,70551.0,0.14238476]
[1773237800841,0.00156,70605.0,70552.0,0.00156]
[1773237801454,0.07081751,70604.0,70551.0,0.07087071]
[1773237801650,0.14416896,70614.0,70551.0,0.07087071]
[1773237801651,0.0708121,70610.0,70554.0,0.14238476]
[1773237801862,0.0723725,70609.0,70554.0,0.14238476]
[1773237802628,0.0723725,70609.0,70551.0,0.07087071]
[1773237802629,0.14416896,70608.0,70551.0,0.07087071]